[Event "Polish Youth 1st League 2022"]
[Site "Lublin"]
[Date "2022.07.01"]
[Round "7.19"]
[White "Wojdak, Jan"]
[Black "Suder, Jakub"]
[Result "0-1"]
[ECO "B40"]
[WhiteElo "2144"]
[BlackElo "2306"]
[Annotator "TA"]
[PlyCount "74"]
[EventDate "2022.06.24"]
[EventType "team-tourn"]
[EventCountry "POL"]
[SourceTitle "playchess.com"]
[Source "ChessBase"]
[SourceQuality "1"]
[TimeControl "40/5400+30:1800+30"]

{[%evp 9,74,6,8,8,8,4,9,9,4,6,13,0,23,38,42,0,0,0,0,0,0,-6,0,-20,-13,-26,-29,-54,-50,-46,-49,-58,-52,-90,-89,-88,-70,-70,-76,-87,-90,-88,-85,-105,-93,-110,-111,-105,-89,-117,-103,-142,-120,-138,-108,-192,-189,-225,-224,-397,-405,-845,-569,-691,-654,-1036,-473]} 1. e4 {[%emt 0:00:08][%cal Be2e4,Be4e5][%mdl 32]} c5 {[%emt 0:00:04]} 2. Nf3 {[%emt 0:00:04]} e6 {[%emt 0:00:04]} 3. Qe2 {[%emt 0:00:17]} Nc6 {[%emt 0:00:46]} 4. g3 {[%emt 0:00:22]} Nf6 {[%emt 0:00:43]} 5. Bg2 {[%emt 0:02:01]} Be7 {[%emt 0:00:31]} 6. e5 {[%emt 0:00:08] C00: French: Unusual White 2nd moves.} Nd5 {[%emt 0:00:05]} 7. Nc3 {[%emt 0:00:04]} O-O {[%emt 0:01:10]} 8. O-O {[%emt 0:03:20] The position is equal.} d6 {[%emt 0:03:27]} 9. exd6 {[%emt 0:10:33]} Qxd6 {[%emt 0:04:20]} 10. d3 {[%emt 0:10:42]} Nxc3 {[%emt 0:05:17]} 11. bxc3 {[%emt 0:00:08]} Bf6 {[%emt 0:02:02]} 12. Bb2 {[%emt 0:00:28] [#]} Bd7 $146 {[%emt 0:01:52]} ({Predecessor:} 12... b6 13. Nd2 Qc7 14. Ne4 Be7 15. Rfe1 Bb7 16. Nd2 {½-½ (16) Almeida,R-Camper,D (2354) IECC email 2002}) 13. Nd2 {[%emt 0:00:37]} Qc7 {[%emt 0:01:39]} 14. Ne4 {[%emt 0:03:01]} Be7 {[%emt 0:00:06]} 15. Rfe1 {[%emt 0:03:21]} Rac8 {[%emt 0:03:11]} 16. Qe3 {[%emt 0:04:57]} b6 {[%emt 0:01:37]} 17. c4 {[%emt 0:01:23]} Rfd8 {[%emt 0:02:05]} 18. h4 {[%emt 0:12:17]} Nd4 {[%emt 0:02:31]} 19. Rac1 {[%emt 0:01:58]} Ba4 {[%emt 0:03:20]} 20. Qd2 {[%emt 0:03:34]} Bc6 {[%emt 0:00:50]} 21. c3 {[%emt 0:01:28]} Nf5 {[%emt 0:00:30][%cal Oe7h4]} 22. Qe2 {[%emt 0:01:11]} Nd6 {[%emt 0:02:33]} 23. Rcd1 {[%emt 0:01:13]} Nxe4 {[%emt 0:00:17]} 24. Bxe4 {[%emt 0:00:03]} Bf6 {[%emt 0:00:38]} 25. Qc2 {[%emt 0:04:18]} Qd7 {[%emt 0:02:13]} 26. Bxc6 {[%emt 0:00:06]} Rxc6 {[%emt 0:00:12]} ({And not} 26... Qxc6 27. Bc1 $15) 27. Re3 {[%emt 0:03:01]} Rd6 {[%emt 0:00:56]} 28. Qe2 {[%emt 0:02:01]} Qa4 {[%emt 0:01:07]} 29. Ba1 {[%emt 0:00:25]} h6 {[%emt 0:04:43]} 30. Rd2 {[%emt 0:02:27]} a6 {[%emt 0:02:21] Black is more active.} 31. Qh5 {[%emt 0:00:35]} Qa3 {[%emt 0:04:15]} 32. Bb2 {[%emt 0:02:25]} (32. Qd1 $17) 32... Qxa2 $19 {[%emt 0:01:35]} 33. Qd1 {[%emt 0:00:05]} b5 {[%emt 0:01:58][%cal Bb6b5,Bb5c4][%mdl 32]} 34. Rf3 $2 {[%emt 0:00:55] [#]} (34. cxb5 axb5 35. Re4) 34... bxc4 {[%emt 0:01:04]} 35. Rxf6 {[%emt 0:00:12]} (35. d4 $142) 35... gxf6 {[%emt 0:00:48] Black is clearly winning.} 36. Bc1 {[%emt 0:00:08]} Qa1 {[%emt 0:01:28][%cal Rd6d3]} 37. Ra2 {[%emt 0:03:24]} Qb1 {[%emt 0:04:53] Weighted Error Value: White=0.49/Black=0.13 (very precise)} (37... Qxa2 $142 38. Bxh6 Kh7) 0-1

[Event "Polish Youth 1st League 2022"]
[Site "Lublin"]
[Date "2022.07.01"]
[Round "7.20"]
[White "Dziewonski, Dariusz"]
[Black "Jendrowiak, Maciej"]
[Result "1-0"]
[ECO "B93"]
[WhiteElo "1976"]
[BlackElo "1713"]
[Annotator "RC"]
[PlyCount "109"]
[EventDate "2022.06.24"]
[EventType "team-tourn"]
[EventCountry "POL"]
[SourceTitle "playchess.com"]
[Source "ChessBase"]
[SourceQuality "1"]
[TimeControl "40/5400+30:1800+30"]

1. e4 {[%emt 0:00:02]} c5 {[%emt 0:00:18]} 2. Nf3 {[%emt 0:00:07]} d6 {[%emt 0:00:10]} 3. d4 {[%emt 0:00:06]} cxd4 {[%emt 0:00:50]} 4. Nxd4 {[%emt 0:00:05]} Nf6 {[%emt 0:00:50]} 5. Nc3 {[%emt 0:00:05]} a6 {[%emt 0:00:10]} 6. f4 {[%emt 0:00:06]} Qc7 {[%emt 0:01:24]} 7. Be2 {[%emt 0:10:41]} b5 {[%emt 0:03:52]} 8. Bf3 {[%emt 0:14:34]} Bb7 {[%emt 0:02:49]} 9. Be3 {[%emt 0:03:48]} Nbd7 {[%emt 0:02:24]} 10. Nd5 {[%emt 0:10:52]} Nxd5 {[%emt 0:03:19]} 11. exd5 {[%emt 0:00:04]} Nb6 {[%emt 0:01:27]} 12. Nb3 {[%emt 0:02:17]} Nc4 {[%emt 0:13:09]} 13. Bd4 {[%emt 0:01:34]} Nb6 {[%emt 0:05:41]} 14. Bf2 {[%emt 0:05:50]} Nc4 {[%emt 0:03:49]} 15. Qd4 {[%emt 0:04:04]} Rg8 {[%emt 0:05:26]} 16. Nd2 {[%emt 0:10:28]} g6 {[%emt 0:14:44]} 17. Nxc4 {[%emt 0:00:55]} bxc4 {[%emt 0:00:31]} 18. c3 {[%emt 0:06:19]} Bg7 {[%emt 0:02:19]} 19. Qb6 {[%emt 0:01:38]} Qxb6 {[%emt 0:00:54]} 20. Bxb6 {[%emt 0:00:07]} Rb8 {[%emt 0:06:44]} 21. Ba7 {[%emt 0:00:20]} Ra8 {[%emt 0:02:32]} 22. Bb6 {[%emt 0:00:05]} Rb8 {[%emt 0:00:10]} 23. Ba7 {[%emt 0:00:07]} Ra8 {[%emt 0:00:08]} 24. Be3 {[%emt 0:00:22]} Kd7 {[%emt 0:01:15]} 25. O-O-O {[%emt 0:03:19]} a5 {[%emt 0:01:55]} 26. g4 {[%emt 0:02:57]} a4 {[%emt 0:05:36]} 27. a3 {[%emt 0:00:37]} Ra5 {[%emt 0:00:52]} 28. Bd4 {[%emt 0:03:03]} Bxd4 {[%emt 0:04:48]} 29. Rxd4 {[%emt 0:00:17]} Rc5 {[%emt 0:02:17]} 30. Rhd1 {[%emt 0:02:58]} Ra8 {[%emt 0:04:26]} 31. Be2 {[%emt 0:00:48]} Ba6 {[%emt 0:01:09]} 32. g5 {[%emt 0:02:50]} f5 {[%emt 0:02:21]} 33. h4 {[%emt 0:07:02]} h5 {[%emt 0:03:06]} 34. gxh6 {[%emt 0:01:05]} Rh8 {[%emt 0:00:06]} 35. h5 {[%emt 0:02:27]} Rxh6 {[%emt 0:02:11]} 36. hxg6 {[%emt 0:00:17]} Rxg6 {[%emt 0:00:04]} 37. Rh1 {[%emt 0:00:31]} Rg2 {[%emt 0:00:48]} 38. Bd1 {[%emt 0:00:26]} Bb5 {[%emt 0:03:50]} 39. Bc2 {[%emt 0:01:17]} Rxc2+ {[%emt 0:00:40]} 40. Kxc2 {[%emt 0:00:00]} Rc8 {[%emt 0:00:00]} 41. Rh5 {[%emt 0:01:00]} Rf8 {[%emt 0:01:06]} 42. Rh7 {[%emt 0:01:22]} Ba6 {[%emt 0:02:01]} 43. Kd1 {[%emt 0:04:01]} Kd8 {[%emt 0:03:58]} 44. Rd2 {[%emt 0:01:52]} Bb7 {[%emt 0:01:09]} 45. Ke2 {[%emt 0:00:24]} Kd7 {[%emt 0:09:44]} 46. Ke3 {[%emt 0:03:07]} Rg8 {[%emt 0:04:00]} 47. Rf7 {[%emt 0:01:11]} Rg3+ {[%emt 0:02:06]} 48. Kf2 {[%emt 0:01:09]} Rg4 {[%emt 0:03:29]} 49. Rxf5 {[%emt 0:01:23]} Rg7 {[%emt 0:00:22]} 50. Rg5 {[%emt 0:00:53]} Rf7 {[%emt 0:00:29]} 51. Kg3 {[%emt 0:01:10]} Rh7 {[%emt 0:00:09]} 52. Rh2 {[%emt 0:00:21]} Rf7 {[%emt 0:00:04]} 53. Rh6 {[%emt 0:00:27]} Rf8 {[%emt 0:00:12]} 54. Rh7 {[%emt 0:00:17]} Rf6 {[%emt 0:00:06]} 55. Kf3 {[%emt 0:00:40]} 1-0

[Event "Polish Youth 1st League 2022"]
[Site "Lublin"]
[Date "2022.07.01"]
[Round "7.21"]
[White "Wierzbicki, Dawid"]
[Black "Maj, Samuel"]
[Result "1/2-1/2"]
[ECO "B40"]
[WhiteElo "1556"]
[BlackElo "1906"]
[Annotator "RC"]
[PlyCount "85"]
[EventDate "2022.06.24"]
[EventType "team-tourn"]
[EventCountry "POL"]
[SourceTitle "playchess.com"]
[Source "ChessBase"]
[SourceQuality "1"]
[TimeControl "40/5400+30:1800+30"]

1. e4 {[%emt 0:00:10]} c5 {[%emt 0:00:04]} 2. Nf3 {[%emt 0:00:16]} e6 {[%emt 0:00:05]} 3. d3 {[%emt 0:01:06]} Nc6 {[%emt 0:00:22]} 4. g3 {[%emt 0:00:22]} Nf6 {[%emt 0:00:19]} 5. Bg2 {[%emt 0:00:10]} d5 {[%emt 0:00:06]} 6. exd5 {[%emt 0:01:45]} exd5 {[%emt 0:00:45]} 7. O-O {[%emt 0:00:42]} Be7 {[%emt 0:01:30]} 8. d4 {[%emt 0:04:15]} O-O {[%emt 0:00:46]} 9. Be3 {[%emt 0:05:19]} Bg4 {[%emt 0:06:26]} 10. h3 {[%emt 0:07:42]} Bxf3 {[%emt 0:02:16]} 11. Bxf3 {[%emt 0:00:13]} Qb6 {[%emt 0:02:06]} 12. dxc5 {[%emt 0:03:16]} Bxc5 {[%emt 0:05:23]} 13. Bxc5 {[%emt 0:02:01]} Qxc5 {[%emt 0:00:05]} 14. Nd2 {[%emt 0:01:04]} Nd4 {[%emt 0:04:37]} 15. c3 {[%emt 0:01:58]} Nxf3+ {[%emt 0:01:13]} 16. Qxf3 {[%emt 0:02:21]} Rfe8 {[%emt 0:01:30]} 17. Rfe1 {[%emt 0:01:01]} Qb6 {[%emt 0:02:42]} 18. b4 {[%emt 0:10:33]} Qc6 {[%emt 0:07:37]} 19. c4 {[%emt 0:09:25]} Rac8 {[%emt 0:14:04]} 20. c5 {[%emt 0:03:57]} Ne4 {[%emt 0:01:53]} 21. Nxe4 {[%emt 0:07:46]} dxe4 {[%emt 0:00:28]} 22. Qf5 {[%emt 0:01:38]} Re6 {[%emt 0:02:45]} 23. Rad1 {[%emt 0:03:28]} Rce8 {[%emt 0:02:27]} 24. Qf4 {[%emt 0:05:08]} g6 {[%emt 0:05:08]} 25. Rd4 {[%emt 0:01:43]} Kg7 {[%emt 0:04:48]} 26. Qe3 {[%emt 0:00:28]} Qc8 {[%emt 0:06:31]} 27. Red1 {[%emt 0:01:41]} Re5 {[%emt 0:01:35]} 28. Kg2 {[%emt 0:00:41]} Qf5 {[%emt 0:02:55]} 29. Rd7 {[%emt 0:01:25]} R8e7 {[%emt 0:02:56]} 30. Rd8 {[%emt 0:01:27]} Re8 {[%emt 0:03:05]} 31. R8d4 {[%emt 0:01:03]} R8e6 {[%emt 0:02:09]} 32. a3 {[%emt 0:04:15]} Qf6 {[%emt 0:01:22]} 33. Rd6 {[%emt 0:01:41]} h5 {[%emt 0:04:34]} 34. Rxe6 {[%emt 0:00:52]} Rxe6 {[%emt 0:00:38]} 35. Rd7 {[%emt 0:00:39]} Re7 {[%emt 0:01:21]} 36. Rxe7 {[%emt 0:01:02]} Qxe7 {[%emt 0:00:08]} 37. Qd4+ {[%emt 0:00:16]} f6 {[%emt 0:02:16]} 38. b5 {[%emt 0:00:09]} a6 {[%emt 0:02:19]} 39. a4 {[%emt 0:00:21]} axb5 {[%emt 0:01:28]} 40. axb5 {[%emt 0:00:00]} Qe8 {[%emt 0:00:00]} 41. Qc4 {[%emt 0:02:48]} e3 {[%emt 0:03:28]} 42. Qe2 {[%emt 0:05:05]} Qd7 {[%emt 0:02:25]} 43. fxe3 {[%emt 0:17:30]} 1/2-1/2

[Event "Polish Youth 1st League 2022"]
[Site "Lublin"]
[Date "2022.07.01"]
[Round "7.22"]
[White "Jamrozik, Maciej"]
[Black "Oles, Mateusz"]
[Result "1/2-1/2"]
[ECO "D86"]
[WhiteElo "1251"]
[BlackElo "1201"]
[Annotator "NA RC"]
[PlyCount "118"]
[EventDate "2022.06.24"]
[EventType "team-tourn"]
[EventCountry "POL"]
[SourceTitle "playchess.com"]
[Source "ChessBase"]
[SourceQuality "1"]
[TimeControl "40/5400+30:1800+30"]

1. d4 {[%emt 0:00:03]} Nf6 {[%emt 0:00:07]} 2. c4 {[%emt 0:00:11]} g6 {[%emt 0:00:04]} 3. Nc3 {[%emt 0:00:04]} d5 {[%emt 0:00:04]} 4. cxd5 {[%emt 0:00:05]} Nxd5 {[%emt 0:00:12]} 5. e4 {[%emt 0:00:05]} Nxc3 {[%emt 0:00:24]} 6. bxc3 {[%emt 0:00:08]} Bg7 {[%emt 0:00:09]} 7. Bc4 {[%emt 0:00:10]} c5 {[%emt 0:01:02]} 8. Ne2 {[%emt 0:00:09]} O-O {[%emt 0:00:33]} 9. O-O {[%emt 0:00:06]} Nc6 {[%emt 0:00:44]} 10. Be3 {[%emt 0:00:04]} e6 {[%emt 0:00:44]} 11. dxc5 {[%emt 0:02:46]} Qa5 {[%emt 0:00:54]} 12. Qc2 {[%emt 0:10:18]} Ne5 {[%emt 0:04:47]} 13. Bb3 {[%emt 0:06:40]} Bd7 {[%emt 0:21:35]} 14. Rfd1 {[%emt 0:12:59]} Bc6 {[%emt 0:13:43]} 15. Nd4 {[%emt 0:16:38]} h6 {[%emt 0:14:28]} 16. h3 {[%emt 0:07:07]} Rfd8 {[%emt 0:04:51]} 17. Rac1 {[%emt 0:14:43]} Rac8 {[%emt 0:03:46]} 18. Rd2 {[%emt 0:05:09]} Be8 {[%emt 0:05:23]} 19. f4 {[%emt 0:04:20]} Nc6 {[%emt 0:05:03]} 20. f5 {[%emt 0:02:08]} exf5 {[%emt 0:07:17]} 21. exf5 {[%emt 0:01:30]} Qxc5 {[%emt 0:02:37]} 22. fxg6 {[%emt 0:04:23]} Nxd4 {[%emt 0:01:04]} 23. gxf7+ {[%emt 0:02:35]} Bxf7 {[%emt 0:00:49]} 24. cxd4 {[%emt 0:01:29]} Qxc2 {[%emt 0:02:16]} 25. Rcxc2 {[%emt 0:00:47]} Rxc2 {[%emt 0:01:37]} 26. Rxc2 {[%emt 0:00:12]} Bxb3 {[%emt 0:02:08]} 27. axb3 {[%emt 0:00:05]} Bxd4 {[%emt 0:00:53]} 28. Bxd4 {[%emt 0:00:12]} Rxd4 {[%emt 0:00:04]} 29. Rc8+ {[%emt 0:00:07]} Kf7 {[%emt 0:01:17]} 30. Rc7+ {[%emt 0:00:04]} Kf6 {[%emt 0:00:25]} 31. Rxb7 {[%emt 0:00:13]} Rd3 {[%emt 0:01:34]} 32. Rxa7 {[%emt 0:00:32]} Rxb3 {[%emt 0:00:06]} 33. Kh2 {[%emt 0:00:20]} Kg5 {[%emt 0:00:23]} 34. Ra5+ {[%emt 0:00:23]} Kg6 {[%emt 0:00:36]} 35. Rc5 {[%emt 0:00:44]} Rd3 {[%emt 0:00:48]} 36. Rc2 {[%emt 0:01:19]} Kg5 {[%emt 0:01:58]} 37. g3 {[%emt 0:01:09]} h5 {[%emt 0:00:24]} 38. Kg2 {[%emt 0:01:09]} Rb3 {[%emt 0:00:51]} 39. h4+ {[%emt 0:01:01]} Kg6 {[%emt 0:00:20]} 40. Re2 {[%emt 0:00:00]} Kf6 {[%emt 0:00:00]} 41. Kf2 {[%emt 0:00:51]} Rc3 {[%emt 0:01:27]} 42. Rb2 {[%emt 0:00:52]} Kg6 {[%emt 0:00:23]} 43. Rb6+ {[%emt 0:00:24]} Kh7 {[%emt 0:00:13]} 44. Re6 {[%emt 0:00:37]} Ra3 {[%emt 0:00:25]} 45. Re3 {[%emt 0:00:36]} Ra4 {[%emt 0:00:28]} 46. Kf3 {[%emt 0:00:17]} Kg6 {[%emt 0:00:25]} 47. Re4 {[%emt 0:00:28]} Ra6 {[%emt 0:02:12]} 48. Re5 {[%emt 0:01:29]} Rf6+ {[%emt 0:00:35]} 49. Ke4 {[%emt 0:00:07]} Ra6 {[%emt 0:00:24]} 50. Rg5+ {[%emt 0:00:45]} Kh6 {[%emt 0:00:08]} 51. Rd5 {[%emt 0:00:35]} Rg6 {[%emt 0:02:01]} 52. Kf4 {[%emt 0:00:27]} Rg4+ {[%emt 0:01:10]} 53. Kf3 {[%emt 0:00:39]} Ra4 {[%emt 0:01:17]} 54. Rd6+ {[%emt 0:00:26]} Kh7 {[%emt 0:00:17]} 55. Re6 {[%emt 0:00:09]} Rb4 {[%emt 0:01:30]} 56. Re4 {[%emt 0:00:26]} Rb6 {[%emt 0:00:27]} 57. Re5 {[%emt 0:00:29]} Kg6 {[%emt 0:00:41]} 58. Kf4 {[%emt 0:00:24]} Rb4+ {[%emt 0:00:44]} 59. Re4 {[%emt 0:00:14]} Rb6 {[%emt 0:00:21]} 1/2-1/2

[Event "Polish Youth 1st League 2022"]
[Site "Lublin"]
[Date "2022.07.01"]
[Round "7.23"]
[White "Kucharska, Helena"]
[Black "Uliasz, Katarzyna"]
[Result "1/2-1/2"]
[ECO "A49"]
[WhiteElo "1630"]
[BlackElo "1526"]
[Annotator "NA RC"]
[PlyCount "108"]
[EventDate "2022.06.24"]
[EventType "team-tourn"]
[EventCountry "POL"]
[SourceTitle "playchess.com"]
[Source "ChessBase"]
[SourceQuality "1"]
[TimeControl "40/5400+30:1800+30"]

1. d4 {[%emt 0:00:02]} Nf6 {[%emt 0:00:05]} 2. Nf3 {[%emt 0:00:06]} g6 {[%emt 0:00:10]} 3. g3 {[%emt 0:00:07]} Bg7 {[%emt 0:00:05]} 4. Bg2 {[%emt 0:00:08]} O-O {[%emt 0:00:06]} 5. O-O {[%emt 0:00:04]} d6 {[%emt 0:00:06]} 6. Re1 {[%emt 0:00:09]} Nbd7 {[%emt 0:00:33]} 7. e4 {[%emt 0:00:32]} e5 {[%emt 0:00:37]} 8. a4 {[%emt 0:00:41]} exd4 {[%emt 0:06:35]} 9. Nxd4 {[%emt 0:02:38]} Re8 {[%emt 0:01:28]} 10. Nc3 {[%emt 0:02:33]} Nc5 {[%emt 0:02:39]} 11. Bf4 {[%emt 0:05:14]} Nh5 {[%emt 0:11:29]} 12. Be3 {[%emt 0:00:31]} Ne6 {[%emt 0:01:17]} 13. Qd2 {[%emt 0:03:46]} Nf6 {[%emt 0:06:46]} 14. Rad1 {[%emt 0:03:01]} Ng4 {[%emt 0:06:37]} 15. Nxe6 {[%emt 0:02:55]} Bxe6 {[%emt 0:01:45]} 16. Bd4 {[%emt 0:01:17]} Ne5 {[%emt 0:00:44]} 17. f4 {[%emt 0:17:08]} Nc4 18. Qc1 {[%emt 0:04:04]} Bg4 {[%emt 0:05:50]} 19. Rd3 {[%emt 0:15:57]} Bd7 {[%emt 0:04:02]} 20. Bxg7 {[%emt 0:01:19]} Kxg7 {[%emt 0:00:03]} 21. b3 {[%emt 0:00:22]} Nb6 {[%emt 0:00:51]} 22. Rf1 {[%emt 0:05:22]} Bc6 {[%emt 0:02:33]} 23. f5 {[%emt 0:02:17]} f6 {[%emt 0:00:32]} 24. Nd5 {[%emt 0:04:51]} Bxd5 {[%emt 0:00:52]} 25. exd5 {[%emt 0:00:28]} Nd7 {[%emt 0:00:36]} 26. fxg6 {[%emt 0:03:00]} hxg6 {[%emt 0:00:25]} 27. Bh3 {[%emt 0:02:51]} Ne5 {[%emt 0:00:28]} 28. Rd4 {[%emt 0:00:12]} Rh8 {[%emt 0:03:14]} 29. Be6 {[%emt 0:06:07]} f5 {[%emt 0:01:27]} 30. Qd2 {[%emt 0:00:23]} Rh5 {[%emt 0:07:36]} 31. c4 {[%emt 0:06:06]} Qf6 {[%emt 0:02:48]} 32. Rdf4 {[%emt 0:00:59]} Rah8 {[%emt 0:02:33]} 33. h4 {[%emt 0:01:11]} Qe7 {[%emt 0:01:25]} 34. Qc3 {[%emt 0:01:27]} Kf8 {[%emt 0:02:39]} 35. c5 {[%emt 0:00:46]} Kg7 {[%emt 0:02:36]} 36. b4 {[%emt 0:01:40]} Re8 {[%emt 0:01:26]} 37. Re1 {[%emt 0:04:01]} Qf6 {[%emt 0:00:38]} 38. Qe3 {[%emt 0:01:42]} Ng4 {[%emt 0:00:57]} 39. Rxg4 {[%emt 0:01:49]} fxg4 {[%emt 0:00:15]} 40. cxd6 {[%emt 0:00:00]} cxd6 {[%emt 0:00:00]} 41. Qd2 {[%emt 0:11:34]} Rf8 {[%emt 0:04:42]} 42. Rc1 {[%emt 0:00:45]} Kh8 {[%emt 0:02:18]} 43. Bxg4 {[%emt 0:03:05]} Rh7 {[%emt 0:00:23]} 44. Be6 {[%emt 0:01:47]} Qf3 {[%emt 0:02:48]} 45. Qc3+ {[%emt 0:04:15]} Rg7 {[%emt 0:01:06]} 46. Qxf3 {[%emt 0:04:00]} Rxf3 {[%emt 0:00:05]} 47. Kg2 {[%emt 0:00:56]} Ra3 {[%emt 0:01:43]} 48. a5 {[%emt 0:01:02]} Rb3 {[%emt 0:00:28]} 49. Rc4 {[%emt 0:00:34]} Re7 {[%emt 0:00:55]} 50. Rg4 {[%emt 0:01:04]} Kh7 {[%emt 0:00:28]} 51. Rc4 {[%emt 0:00:24]} Kg7 {[%emt 0:00:31]} 52. Kh3 {[%emt 0:03:10]} Kf6 {[%emt 0:00:50]} 53. Re4 {[%emt 0:01:52]} Rc7 {[%emt 0:01:04]} 54. Rf4+ {[%emt 0:00:51]} Ke5 {[%emt 0:01:28]} 1/2-1/2

[Event "Polish Youth 1st League 2022"]
[Site "Lublin"]
[Date "2022.07.01"]
[Round "7.24"]
[White "Tokarz, Gabriela"]
[Black "Seemann, Pola"]
[Result "1-0"]
[ECO "D31"]
[WhiteElo "1469"]
[BlackElo "1777"]
[Annotator "NA RC"]
[PlyCount "79"]
[EventDate "2022.06.24"]
[EventType "team-tourn"]
[EventCountry "POL"]
[SourceTitle "playchess.com"]
[Source "ChessBase"]
[SourceQuality "1"]
[TimeControl "40/5400+30:1800+30"]

1. d4 {[%emt 0:00:02]} d5 {[%emt 0:00:05]} 2. c4 {[%emt 0:00:04]} e6 {[%emt 0:00:03]} 3. Nc3 {[%emt 0:00:04]} Be7 {[%emt 0:00:03]} 4. Nf3 {[%emt 0:00:22]} Nf6 {[%emt 0:00:06]} 5. cxd5 {[%emt 0:00:04]} exd5 {[%emt 0:00:04]} 6. Bg5 {[%emt 0:00:16]} h6 {[%emt 0:00:11]} 7. Bh4 {[%emt 0:00:05]} O-O {[%emt 0:00:35]} 8. Qc2 {[%emt 0:00:14]} c6 {[%emt 0:00:25]} 9. e3 {[%emt 0:00:05]} Re8 {[%emt 0:00:21]} 10. Bd3 {[%emt 0:01:08]} Ne4 {[%emt 0:00:14]} 11. Bxe7 {[%emt 0:00:08]} Qxe7 {[%emt 0:00:17]} 12. O-O {[%emt 0:00:07]} Bf5 {[%emt 0:01:02]} 13. Rab1 {[%emt 0:02:54]} a5 {[%emt 0:02:44]} 14. a3 {[%emt 0:01:05]} Nd7 {[%emt 0:02:28]} 15. b4 {[%emt 0:01:50]} axb4 {[%emt 0:02:48]} 16. axb4 {[%emt 0:00:08]} Ra3 {[%emt 0:02:28]} 17. Bxe4 {[%emt 0:01:08]} dxe4 {[%emt 0:14:14]} 18. Nd2 {[%emt 0:00:30]} b5 {[%emt 0:04:10]} 19. Ne2 {[%emt 0:03:15]} Bg4 {[%emt 0:04:47]} 20. Ng3 {[%emt 0:00:58]} Nf6 {[%emt 0:13:55]} 21. Qxc6 {[%emt 0:03:42]} Bd7 {[%emt 0:00:21]} 22. Qc5 {[%emt 0:00:08]} Qe6 {[%emt 0:01:52]} 23. Qc1 {[%emt 0:02:12]} Ra4 {[%emt 0:06:14]} 24. Rb2 {[%emt 0:02:33]} Qe7 {[%emt 0:03:01]} 25. Qb1 {[%emt 0:00:48]} Bc6 {[%emt 0:04:53]} 26. Rc1 {[%emt 0:01:33]} Rea8 {[%emt 0:06:31]} 27. Rxc6 {[%emt 0:04:21]} Ra1 {[%emt 0:04:39]} 28. Rc8+ {[%emt 0:00:09]} Kh7 {[%emt 0:00:23]} 29. Rxa8 {[%emt 0:00:08]} Rxb1+ {[%emt 0:00:05]} 30. Rxb1 {[%emt 0:00:09]} Qb7 {[%emt 0:02:03]} 31. Raa1 {[%emt 0:00:48]} h5 {[%emt 0:01:44]} 32. Ne2 {[%emt 0:04:45]} Qc7 {[%emt 0:02:42]} 33. Rc1 {[%emt 0:00:49]} Qd6 {[%emt 0:00:28]} 34. Rc5 {[%emt 0:01:28]} g6 {[%emt 0:01:00]} 35. Ra7 {[%emt 0:02:52]} Nd7 {[%emt 0:02:06]} 36. Rcc7 {[%emt 0:01:19]} Qxb4 {[%emt 0:00:13]} 37. Rxd7 {[%emt 0:00:41]} Qxd2 {[%emt 0:00:18]} 38. Rxf7+ {[%emt 0:00:10]} Kh6 {[%emt 0:00:21]} 39. Ng3 {[%emt 0:00:12]} b4 {[%emt 0:00:31]} 40. h4 {[%emt 0:00:00]} 1-0